[Event "*** SCC Grand Prix: Titled Tuesday Blitz"]
[Site "Chess.com"]
[Date "2020.06.23"]
[Round "8"]
[White "Squirlolz"]
[Black "Lucas_Tomiello"]
[Result "1-0"]
[WhiteElo "2515"]
[BlackElo "2333"]
[TimeControl "180+1"]
[EndTime "11:31:55 PDT"]
[Termination "Squirlolz won by resignation"]

1. b3 {[%clk 0:03:00.9]} 1... Nf6 {[%clk 0:02:59.8]} 2. Bb2 {[%clk 0:03:01.8]}
2... g6 {[%clk 0:03:00.4]} 3. Bxf6 {[%clk 0:03:00.8]} 3... exf6 {[%clk
0:03:01.3]} 4. c4 {[%clk 0:03:01]} 4... Bg7 {[%clk 0:03:01.2]} 5. Nc3 {[%clk
0:03:01.6]} 5... f5 {[%clk 0:03:00.8]} 6. g3 {[%clk 0:03:01.8]} 6... O-O {[%clk
0:03:00.3]} 7. Bg2 {[%clk 0:03:02.4]} 7... d6 {[%clk 0:02:49.6]} 8. e3 {[%clk
0:03:02.4]} 8... Nc6 {[%clk 0:02:46.2]} 9. Nge2 {[%clk 0:03:03]} 9... Bd7 {[%clk
0:02:45.7]} 10. d4 {[%clk 0:02:56.9]} 10... Re8 {[%clk 0:02:41.7]} 11. Qd2
{[%clk 0:02:57.1]} 11... a6 {[%clk 0:02:32]} 12. O-O {[%clk 0:02:56.5]} 12...
Rb8 {[%clk 0:02:30.4]} 13. Rac1 {[%clk 0:02:54.7]} 13... b5 {[%clk 0:02:27.1]}
14. cxb5 {[%clk 0:02:50.9]} 14... axb5 {[%clk 0:02:28]} 15. Nxb5 {[%clk
0:02:49.6]} 15... Rxb5 {[%clk 0:02:20.6]} 16. Bxc6 {[%clk 0:02:49.8]} 16... Bxc6
{[%clk 0:02:07.8]} 17. Rxc6 {[%clk 0:02:50.7]} 17... h5 {[%clk 0:01:51.7]} 18.
Rfc1 {[%clk 0:02:48.8]} 18... Re7 {[%clk 0:01:46.6]} 19. Qc2 {[%clk 0:02:39.3]}
19... Rb7 {[%clk 0:01:45.1]} 20. Nf4 {[%clk 0:02:39.3]} 20... h4 {[%clk
0:01:43.9]} 21. Nd5 {[%clk 0:02:36.2]} 21... Rd7 {[%clk 0:01:38.5]} 22. Nxc7
{[%clk 0:02:27.7]} 22... Kh7 {[%clk 0:01:24.8]} 23. Nd5 {[%clk 0:02:15.9]} 23...
h3 {[%clk 0:01:19.1]} 24. Nf4 {[%clk 0:02:07.2]} 1-0

[Event "*** SCC Grand Prix: Titled Tuesday Blitz"]
[Site "Chess.com"]
[Date "2020.06.23"]
[Round "8"]
[White "Bastiandash"]
[Black "QueenOfTactics90"]
[Result "0-1"]
[WhiteElo "2202"]
[BlackElo "1968"]
[TimeControl "180+1"]
[EndTime "11:31:55 PDT"]
[Termination "QueenOfTactics90 won by resignation"]

1. d4 {[%clk 0:03:00.9]} 1... Nf6 {[%clk 0:02:57.3]} 2. Nf3 {[%clk 0:03:01.8]}
2... e6 {[%clk 0:02:57.5]} 3. c3 {[%clk 0:03:02.3]} 3... d5 {[%clk 0:02:58.1]}
4. Bg5 {[%clk 0:03:02.9]} 4... c5 {[%clk 0:02:58]} 5. e3 {[%clk 0:03:01.5]} 5...
Be7 {[%clk 0:02:58]} 6. Bd3 {[%clk 0:03:01]} 6... b6 {[%clk 0:02:57.8]} 7. O-O
{[%clk 0:03:00.2]} 7... O-O {[%clk 0:02:57.2]} 8. Nbd2 {[%clk 0:03:00.5]} 8...
Bb7 {[%clk 0:02:57.2]} 9. Ne5 {[%clk 0:03:01.1]} 9... Nbd7 {[%clk 0:02:55.2]}
10. f4 {[%clk 0:03:01.2]} 10... Ne4 {[%clk 0:02:52.9]} 11. Bxe7 {[%clk 0:03:00]}
11... Qxe7 {[%clk 0:02:52.9]} 12. Rf3 {[%clk 0:02:59]} 12... f6 {[%clk
0:02:37.8]} 13. Nxd7 {[%clk 0:02:52.6]} 13... Qxd7 {[%clk 0:02:38.7]} 14. Rh3
{[%clk 0:02:52.7]} 14... g6 {[%clk 0:02:29.6]} 15. Nf3 {[%clk 0:02:47]} 15...
Rae8 {[%clk 0:02:05.1]} 16. Qe1 {[%clk 0:02:43.1]} 16... Bc8 {[%clk 0:01:50.2]}
17. Rh6 {[%clk 0:02:08]} 17... Qg7 {[%clk 0:01:42.7]} 18. Qh4 {[%clk 0:01:47.6]}
18... Nd6 {[%clk 0:01:42.2]} 19. Qg3 {[%clk 0:01:41.4]} 19... Qxh6 {[%clk
0:01:30.3]} 0-1

[Event "*** SCC Grand Prix: Titled Tuesday Blitz"]
[Site "Chess.com"]
[Date "2020.06.23"]
[Round "8"]
[White "zaur-mammadov"]
[Black "LogoCzar"]
[Result "1-0"]
[WhiteElo "2607"]
[BlackElo "2452"]
[TimeControl "180+1"]
[EndTime "11:32:23 PDT"]
[Termination "zaur-mammadov won by resignation"]

1. e4 {[%clk 0:03:00.9]} 1... e5 {[%clk 0:02:58]} 2. Nf3 {[%clk 0:03:00.2]} 2...
Nc6 {[%clk 0:02:57.9]} 3. Nc3 {[%clk 0:02:59.5]} 3... Nf6 {[%clk 0:02:58]} 4.
Be2 {[%clk 0:02:59.4]} 4... Nxe4 {[%clk 0:02:56.7]} 5. Nxe4 {[%clk 0:02:58.8]}
5... d5 {[%clk 0:02:56.9]} 6. Nc3 {[%clk 0:02:49]} 6... d4 {[%clk 0:02:56.2]} 7.
Ne4 {[%clk 0:02:45.1]} 7... f5 {[%clk 0:02:53.3]} 8. Bd3 {[%clk 0:02:45.3]} 8...
fxe4 {[%clk 0:02:52.1]} 9. Bxe4 {[%clk 0:02:46.2]} 9... Bg4 {[%clk 0:02:35.8]}
10. O-O {[%clk 0:02:43]} 10... Qf6 {[%clk 0:02:33.6]} 11. d3 {[%clk 0:02:42.3]}
11... O-O-O {[%clk 0:02:33.4]} 12. Bg5 {[%clk 0:02:23.2]} 12... Bxf3 {[%clk
0:02:13.2]} 13. Bxf6 {[%clk 0:02:21.6]} 13... Bxd1 {[%clk 0:02:12.7]} 14. Bxd8
{[%clk 0:02:21.4]} 14... Bxc2 {[%clk 0:02:03.8]} 15. Rac1 {[%clk 0:01:31.8]}
15... Ba4 {[%clk 0:02:03.1]} 16. Bh4 {[%clk 0:01:27.8]} 16... Nb4 {[%clk
0:01:59.4]} 17. a3 {[%clk 0:01:24.1]} 17... Na6 {[%clk 0:01:57.9]} 18. f4 {[%clk
0:01:19.7]} 18... exf4 {[%clk 0:01:53.5]} 19. Rxf4 {[%clk 0:01:17.8]} 19... Bd6
{[%clk 0:01:52.4]} 20. Rf7 {[%clk 0:01:16.6]} 20... Be5 {[%clk 0:01:47.2]} 21.
Bf5+ {[%clk 0:01:10.3]} 21... Kb8 {[%clk 0:01:41.8]} 22. Re1 {[%clk 0:01:10.9]}
22... Bb3 {[%clk 0:01:40.6]} 23. Re7 {[%clk 0:01:07.7]} 1-0

[Event "*** SCC Grand Prix: Titled Tuesday Blitz"]
[Site "Chess.com"]
[Date "2020.06.23"]
[Round "8"]
[White "WinstonSilvakov"]
[Black "AndrewDGreen"]
[Result "0-1"]
[WhiteElo "2140"]
[BlackElo "2302"]
[TimeControl "180+1"]
[EndTime "11:32:35 PDT"]
[Termination "AndrewDGreen won by resignation"]

1. d4 {[%clk 0:03:00.9]} 1... Nf6 {[%clk 0:02:58.2]} 2. e3 {[%clk 0:03:00.3]}
2... g6 {[%clk 0:02:57.7]} 3. h4 {[%clk 0:03:00.8]} 3... Bg7 {[%clk 0:02:56.1]}
4. h5 {[%clk 0:03:01.7]} 4... Nxh5 {[%clk 0:02:54.1]} 5. Rxh5 {[%clk 0:03:02]}
5... gxh5 {[%clk 0:02:54.3]} 6. Qxh5 {[%clk 0:03:02.2]} 6... d6 {[%clk
0:02:51.4]} 7. Nf3 {[%clk 0:03:00.5]} 7... Nd7 {[%clk 0:02:50.5]} 8. Ng5 {[%clk
0:02:58.3]} 8... Rf8 {[%clk 0:02:40.5]} 9. Ne6 {[%clk 0:02:58]} 9... Bf6 {[%clk
0:02:35.8]} 10. Nxd8 {[%clk 0:02:56.4]} 10... Kxd8 {[%clk 0:02:36]} 11. c4
{[%clk 0:02:53.3]} 11... b6 {[%clk 0:02:34.6]} 12. Qf3 {[%clk 0:02:51.2]} 12...
Rb8 {[%clk 0:02:34]} 13. Nc3 {[%clk 0:02:50.6]} 13... Bb7 {[%clk 0:02:31.5]} 14.
d5 {[%clk 0:02:49.1]} 14... Ne5 {[%clk 0:02:30.4]} 15. Qf5 {[%clk 0:02:48.2]}
15... h6 {[%clk 0:02:27.6]} 16. Ne4 {[%clk 0:02:46.9]} 16... Bc8 {[%clk
0:02:25.9]} 17. Qh7 {[%clk 0:02:38.5]} 17... Rh8 {[%clk 0:02:21.5]} 18. Nxf6
{[%clk 0:02:35.5]} 18... Rxh7 {[%clk 0:02:19.8]} 19. Nxh7 {[%clk 0:02:34.9]}
19... Bf5 {[%clk 0:02:17.6]} 20. Nf8 {[%clk 0:02:16.8]} 20... Ke8 {[%clk
0:02:15.1]} 21. f4 {[%clk 0:02:16.9]} 21... Nd3+ {[%clk 0:02:05.6]} 22. Bxd3
{[%clk 0:02:12.8]} 22... Bxd3 {[%clk 0:02:06.5]} 23. b3 {[%clk 0:02:05.1]} 23...
Kxf8 {[%clk 0:02:00.1]} 24. Kd2 {[%clk 0:02:02.8]} 24... Be4 {[%clk 0:01:57.4]}
25. g3 {[%clk 0:02:03.1]} 25... f6 {[%clk 0:01:56.5]} 26. a3 {[%clk 0:02:02.5]}
26... Kf7 {[%clk 0:01:54]} 27. Ke2 {[%clk 0:02:00.2]} 27... Rg8 {[%clk
0:01:51.2]} 28. Kf2 {[%clk 0:01:59.6]} 28... h5 {[%clk 0:01:51.8]} 29. Bd2
{[%clk 0:01:33.7]} 29... h4 {[%clk 0:01:51.3]} 30. Rg1 {[%clk 0:01:22.4]} 30...
h3 {[%clk 0:01:40]} 0-1

[Event "*** SCC Grand Prix: Titled Tuesday Blitz"]
[Site "Chess.com"]
[Date "2020.06.23"]
[Round "8"]
[White "LuisFSiles"]
[Black "Chigorinetz"]
[Result "0-1"]
[WhiteElo "2331"]
[BlackElo "2543"]
[TimeControl "180+1"]
[EndTime "11:32:39 PDT"]
[Termination "Chigorinetz won by resignation"]

1. e4 {[%clk 0:03:00.9]} 1... c5 {[%clk 0:02:59.2]} 2. Nf3 {[%clk 0:03:00.9]}
2... Nc6 {[%clk 0:02:58.8]} 3. c3 {[%clk 0:03:00.3]} 3... d5 {[%clk 0:02:58.2]}
4. exd5 {[%clk 0:03:00.2]} 4... Qxd5 {[%clk 0:02:58.3]} 5. d4 {[%clk 0:03:00.7]}
5... cxd4 {[%clk 0:02:58.6]} 6. cxd4 {[%clk 0:03:00.1]} 6... e5 {[%clk
0:02:58.5]} 7. Nc3 {[%clk 0:02:54.7]} 7... Bb4 {[%clk 0:02:58.5]} 8. Bd2 {[%clk
0:02:47.5]} 8... Bxc3 {[%clk 0:02:58.1]} 9. Bxc3 {[%clk 0:02:46.2]} 9... e4
{[%clk 0:02:58.1]} 10. Ne5 {[%clk 0:02:41.1]} 10... Nxe5 {[%clk 0:02:57.6]} 11.
dxe5 {[%clk 0:02:40.8]} 11... Ne7 {[%clk 0:02:57.8]} 12. e6 {[%clk 0:02:17.8]}
12... Bxe6 {[%clk 0:02:56.1]} 13. Bxg7 {[%clk 0:02:17.1]} 13... Rg8 {[%clk
0:02:54.8]} 14. Bc3 {[%clk 0:02:08.7]} 14... Qxd1+ {[%clk 0:02:48.7]} 15. Kxd1
{[%clk 0:01:54.4]} 15... Nd5 {[%clk 0:02:48.2]} 16. Kc2 {[%clk 0:01:47]} 16...
Rc8 {[%clk 0:02:45.4]} 17. Bb5+ {[%clk 0:01:45]} 17... Ke7 {[%clk 0:02:44.2]}
18. g3 {[%clk 0:01:38.1]} 18... Rc5 {[%clk 0:02:32.5]} 19. Ba4 {[%clk
0:01:18.9]} 19... b5 {[%clk 0:02:11.2]} 20. Bb3 {[%clk 0:01:18.3]} 20... b4
{[%clk 0:02:08.6]} 21. Rhe1 {[%clk 0:01:03.7]} 21... f5 {[%clk 0:01:57.3]} 22.
f3 {[%clk 0:00:56.4]} 22... bxc3 {[%clk 0:01:49.7]} 23. fxe4 {[%clk 0:00:52.6]}
23... Nb4+ {[%clk 0:01:45]} 0-1

[Event "*** SCC Grand Prix: Titled Tuesday Blitz"]
[Site "Chess.com"]
[Date "2020.06.23"]
[Round "8"]
[White "Herracek"]
[Black "alexrustemov"]
[Result "0-1"]
[WhiteElo "2582"]
[BlackElo "2739"]
[TimeControl "180+1"]
[EndTime "11:32:48 PDT"]
[Termination "alexrustemov won by resignation"]

1. c4 {[%clk 0:03:00.9]} 1... c5 {[%clk 0:02:59.2]} 2. g3 {[%clk 0:03:01.3]}
2... g6 {[%clk 0:02:58.6]} 3. Bg2 {[%clk 0:03:01.7]} 3... Bg7 {[%clk 0:02:59.4]}
4. Nc3 {[%clk 0:03:02.4]} 4... Nc6 {[%clk 0:02:59.6]} 5. a3 {[%clk 0:03:02.7]}
5... b6 {[%clk 0:02:59.2]} 6. b4 {[%clk 0:02:59.6]} 6... Bxc3 {[%clk 0:02:54.8]}
7. dxc3 {[%clk 0:02:58.3]} 7... Bb7 {[%clk 0:02:54.3]} 8. Nf3 {[%clk 0:02:56.7]}
8... d6 {[%clk 0:02:53.8]} 9. O-O {[%clk 0:02:55.9]} 9... Qd7 {[%clk 0:02:47]}
10. Qb3 {[%clk 0:02:42.3]} 10... Nf6 {[%clk 0:02:34.7]} 11. Bh6 {[%clk
0:02:41.7]} 11... Ng4 {[%clk 0:02:33.3]} 12. Bh3 {[%clk 0:02:40.5]} 12... f5
{[%clk 0:02:28]} 13. Bf4 {[%clk 0:02:21.3]} 13... O-O {[%clk 0:02:04.7]} 14.
Rfd1 {[%clk 0:02:16.8]} 14... h6 {[%clk 0:01:41]} 15. Qc2 {[%clk 0:01:37]} 15...
Qe6 {[%clk 0:01:36.7]} 16. Rab1 {[%clk 0:01:19.3]} 16... g5 {[%clk 0:01:29.5]}
17. Bc1 {[%clk 0:01:16.2]} 17... Nce5 {[%clk 0:01:16.1]} 18. Nxe5 {[%clk
0:01:16.2]} 18... Nxe5 {[%clk 0:01:16.7]} 19. e4 {[%clk 0:01:13.8]} 19... Nf3+
{[%clk 0:01:10.7]} 0-1

[Event "*** SCC Grand Prix: Titled Tuesday Blitz"]
[Site "Chess.com"]
[Date "2020.06.23"]
[Round "8"]
[White "ALEXJR20"]
[Black "doctorcristian"]
[Result "0-1"]
[WhiteElo "2193"]
[BlackElo "2409"]
[TimeControl "180+1"]
[EndTime "11:32:57 PDT"]
[Termination "doctorcristian won by resignation"]

1. d4 {[%clk 0:03:00.9]} 1... d5 {[%clk 0:02:57.2]} 2. Nf3 {[%clk 0:03:00.9]}
2... Nf6 {[%clk 0:02:56.5]} 3. c4 {[%clk 0:03:01]} 3... dxc4 {[%clk 0:02:56.8]}
4. g3 {[%clk 0:03:01.3]} 4... b5 {[%clk 0:02:51.4]} 5. Bg2 {[%clk 0:03:01.4]}
5... Bb7 {[%clk 0:02:51.6]} 6. O-O {[%clk 0:03:01]} 6... Nbd7 {[%clk 0:02:51.7]}
7. a4 {[%clk 0:03:01.1]} 7... a6 {[%clk 0:02:50.6]} 8. Nc3 {[%clk 0:02:55.2]}
8... b4 {[%clk 0:02:47.3]} 9. Nb1 {[%clk 0:02:55.4]} 9... e6 {[%clk 0:02:46.9]}
10. Qc2 {[%clk 0:02:53.3]} 10... Bd5 {[%clk 0:02:38.7]} 11. Re1 {[%clk
0:02:48.3]} 11... b3 {[%clk 0:02:37.7]} 12. Qd1 {[%clk 0:02:48.3]} 12... Bb4
{[%clk 0:02:35.1]} 13. Nc3 {[%clk 0:02:47.8]} 13... Qb8 {[%clk 0:02:23.5]} 14.
Bf4 {[%clk 0:02:29.5]} 14... Qb7 {[%clk 0:02:18.8]} 15. Qb1 {[%clk 0:02:22.2]}
15... O-O {[%clk 0:02:10.7]} 16. Nh4 {[%clk 0:02:19.5]} 16... Bxg2 {[%clk
0:02:00]} 17. Nxg2 {[%clk 0:02:20.4]} 17... c5 {[%clk 0:01:49.8]} 18. Rd1 {[%clk
0:02:11.6]} 18... cxd4 {[%clk 0:01:44.7]} 19. Rxd4 {[%clk 0:02:03.1]} 19... e5
{[%clk 0:01:41.8]} 20. Rxc4 {[%clk 0:02:03.2]} 20... exf4 {[%clk 0:01:40.4]} 21.
Nxf4 {[%clk 0:02:03.4]} 21... Ne5 {[%clk 0:01:37.4]} 22. Rd4 {[%clk 0:01:52.5]}
22... Rfd8 {[%clk 0:01:33.9]} 23. Qd1 {[%clk 0:01:48.1]} 23... Nc6 {[%clk
0:01:27.9]} 24. Rd3 {[%clk 0:01:36.8]} 24... Rxd3 {[%clk 0:01:25.4]} 25. Qxd3
{[%clk 0:01:37.7]} 25... Rd8 {[%clk 0:01:24.7]} 26. Qf3 {[%clk 0:01:35.9]} 26...
Bxc3 {[%clk 0:01:22.8]} 27. Qxc3 {[%clk 0:01:30]} 27... Nd4 {[%clk 0:01:22.8]}
28. h4 {[%clk 0:01:15.2]} 28... Ne4 {[%clk 0:01:15.5]} 29. Qf3 {[%clk
0:01:09.1]} 29... Nxf3+ {[%clk 0:01:14.5]} 0-1

[Event "*** SCC Grand Prix: Titled Tuesday Blitz"]
[Site "Chess.com"]
[Date "2020.06.23"]
[Round "8"]
[White "BigAl"]
[Black "vpsetter"]
[Result "1-0"]
[WhiteElo "2479"]
[BlackElo "2603"]
[TimeControl "180+1"]
[EndTime "11:32:59 PDT"]
[Termination "BigAl won by checkmate"]

1. e4 {[%clk 0:03:00.9]} 1... e5 {[%clk 0:02:58.6]} 2. Bc4 {[%clk 0:03:00.3]}
2... Nf6 {[%clk 0:02:58.3]} 3. d3 {[%clk 0:03:00.8]} 3... c6 {[%clk 0:02:56.6]}
4. Nf3 {[%clk 0:03:01]} 4... d5 {[%clk 0:02:56.6]} 5. Bb3 {[%clk 0:03:01.4]}
5... Bd6 {[%clk 0:02:52.6]} 6. Nc3 {[%clk 0:03:00.5]} 6... dxe4 {[%clk
0:02:35.3]} 7. dxe4 {[%clk 0:02:52]} 7... h6 {[%clk 0:02:32.7]} 8. h3 {[%clk
0:02:51.6]} 8... O-O {[%clk 0:02:32.1]} 9. g4 {[%clk 0:02:43.1]} 9... Qe7 {[%clk
0:02:05.6]} 10. g5 {[%clk 0:02:37.1]} 10... hxg5 {[%clk 0:02:02.6]} 11. Bxg5
{[%clk 0:02:35.8]} 11... Bb4 {[%clk 0:01:55.6]} 12. Qe2 {[%clk 0:02:28.1]} 12...
Be6 {[%clk 0:01:46]} 13. Rg1 {[%clk 0:02:23.4]} 13... Nbd7 {[%clk 0:01:39.5]}
14. Nh4 {[%clk 0:02:22.3]} 14... Bxc3+ {[%clk 0:01:30.7]} 15. bxc3 {[%clk
0:02:21.6]} 15... Qc5 {[%clk 0:01:26.8]} 16. Rg3 {[%clk 0:02:15.7]} 16... Rfe8
{[%clk 0:00:43.4]} 17. Qf3 {[%clk 0:02:13.7]} 17... Nh7 {[%clk 0:00:06.8]} 18.
Bh6 {[%clk 0:02:10.3]} 18... g6 {[%clk 0:00:06.3]} 19. Nxg6 {[%clk 0:02:04.2]}
19... fxg6 {[%clk 0:00:05.8]} 20. Rxg6+ {[%clk 0:02:03.7]} 20... Kh8 {[%clk
0:00:06.4]} 21. Bg7+ {[%clk 0:02:04.3]} 21... Kg8 {[%clk 0:00:06.6]} 22. Bxe5#
{[%clk 0:02:04.2]} 1-0

[Event "*** SCC Grand Prix: Titled Tuesday Blitz"]
[Site "Chess.com"]
[Date "2020.06.23"]
[Round "8"]
[White "Maghalashvili"]
[Black "ShimanovAlex"]
[Result "1-0"]
[WhiteElo "2808"]
[BlackElo "2861"]
[TimeControl "180+1"]
[EndTime "11:33:05 PDT"]
[Termination "Maghalashvili won by resignation"]

1. Nf3 {[%clk 0:03:00.9]} 1... d5 {[%clk 0:02:58.6]} 2. g3 {[%clk 0:02:58]} 2...
Bg4 {[%clk 0:02:57.8]} 3. Bg2 {[%clk 0:02:57.7]} 3... Nd7 {[%clk 0:02:57.3]} 4.
d4 {[%clk 0:02:55.9]} 4... e6 {[%clk 0:02:56.3]} 5. h3 {[%clk 0:02:54.5]} 5...
Bh5 {[%clk 0:02:56.1]} 6. O-O {[%clk 0:02:52]} 6... c6 {[%clk 0:02:54]} 7. c4
{[%clk 0:02:50.2]} 7... Ngf6 {[%clk 0:02:48]} 8. cxd5 {[%clk 0:02:48.3]} 8...
exd5 {[%clk 0:02:45.9]} 9. Qb3 {[%clk 0:02:48.2]} 9... Nb6 {[%clk 0:02:43.5]}
10. Ne5 {[%clk 0:02:42.1]} 10... Bg6 {[%clk 0:02:37.4]} 11. Nc3 {[%clk
0:02:39.3]} 11... Bd6 {[%clk 0:02:31.1]} 12. a4 {[%clk 0:02:36.6]} 12... Qc7
{[%clk 0:02:20.5]} 13. a5 {[%clk 0:02:24.2]} 13... Nbd7 {[%clk 0:02:19.8]} 14.
Nxg6 {[%clk 0:02:21.9]} 14... hxg6 {[%clk 0:02:19.7]} 15. a6 {[%clk 0:02:20.1]}
15... b5 {[%clk 0:01:59]} 16. e4 {[%clk 0:02:17.6]} 16... dxe4 {[%clk
0:01:58.9]} 17. Nxe4 {[%clk 0:02:15.1]} 17... Nxe4 {[%clk 0:01:58.9]} 18. Bxe4
{[%clk 0:02:13.8]} 18... Rxh3 {[%clk 0:01:58.4]} 19. Bxg6 {[%clk 0:02:05.8]}
19... Nf6 {[%clk 0:01:40.6]} 20. Qe6+ {[%clk 0:02:02.6]} 20... Qe7 {[%clk
0:01:31.5]} 21. Bxf7+ {[%clk 0:01:52.2]} 21... Kf8 {[%clk 0:01:31.3]} 22. Qxh3
{[%clk 0:01:51.8]} 22... Kxf7 {[%clk 0:01:31.6]} 23. Bg5 {[%clk 0:01:47.6]}
23... Qe4 {[%clk 0:01:25.6]} 24. Bxf6 {[%clk 0:01:44.9]} 24... gxf6 {[%clk
0:01:25.7]} 25. Rfe1 {[%clk 0:01:41.3]} 25... Qf3 {[%clk 0:01:05.9]} 26. Qh7+
{[%clk 0:01:38.6]} 26... Kf8 {[%clk 0:01:05.9]} 27. Re3 {[%clk 0:01:28.2]} 27...
Qd5 {[%clk 0:01:05.8]} 28. Qh8+ {[%clk 0:01:24.4]} 28... Qg8 {[%clk 0:01:04.9]}
29. Qxf6+ {[%clk 0:01:24.4]} 29... Qf7 {[%clk 0:01:05.2]} 30. Qxd6+ {[%clk
0:01:24.5]} 1-0

[Event "*** SCC Grand Prix: Titled Tuesday Blitz"]
[Site "Chess.com"]
[Date "2020.06.23"]
[Round "8"]
[White "annamaja"]
[Black "OhanyanEminChess"]
[Result "0-1"]
[WhiteElo "2246"]
[BlackElo "2534"]
[TimeControl "180+1"]
[EndTime "11:33:08 PDT"]
[Termination "OhanyanEminChess won on time"]

1. e4 {[%clk 0:03:00.9]} 1... e5 {[%clk 0:02:52.7]} 2. Nf3 {[%clk 0:02:58.9]}
2... Nc6 {[%clk 0:02:49.4]} 3. Bb5 {[%clk 0:02:56]} 3... f5 {[%clk 0:02:48.8]}
4. d3 {[%clk 0:02:47.3]} 4... fxe4 {[%clk 0:02:48.5]} 5. dxe4 {[%clk 0:02:47.4]}
5... Nf6 {[%clk 0:02:43.4]} 6. Nc3 {[%clk 0:02:45.7]} 6... Bb4 {[%clk
0:02:42.7]} 7. O-O {[%clk 0:02:24.6]} 7... Bxc3 {[%clk 0:02:42.1]} 8. bxc3
{[%clk 0:02:22.3]} 8... d6 {[%clk 0:02:37.4]} 9. Re1 {[%clk 0:02:13.5]} 9... O-O
{[%clk 0:02:34.7]} 10. Bg5 {[%clk 0:02:03]} 10... Kh8 {[%clk 0:02:33.2]} 11. Nh4
{[%clk 0:01:42.7]} 11... Qe8 {[%clk 0:02:30.8]} 12. Re3 {[%clk 0:01:30]} 12...
a6 {[%clk 0:02:28.5]} 13. Ba4 {[%clk 0:01:22.1]} 13... Bg4 {[%clk 0:02:24.9]}
14. Qd3 {[%clk 0:01:03.4]} 14... h6 {[%clk 0:02:20.8]} 15. Bxf6 {[%clk
0:00:40.2]} 15... Rxf6 {[%clk 0:02:21.7]} 16. h3 {[%clk 0:00:40.7]} 16... Bd7
{[%clk 0:02:20.2]} 17. Rf3 {[%clk 0:00:27.9]} 17... Qh5 {[%clk 0:02:12.3]} 18.
Nf5 {[%clk 0:00:15.6]} 18... Raf8 {[%clk 0:01:59.2]} 19. Ng3 {[%clk 0:00:07.2]}
19... Qf7 {[%clk 0:01:56.3]} 20. Rxf6 {[%clk 0:00:06]} 20... Qxf6 {[%clk
0:01:57.2]} 21. Rf1 {[%clk 0:00:04.8]} 21... Qh4 {[%clk 0:01:52.2]} 0-1

[Event "*** SCC Grand Prix: Titled Tuesday Blitz"]
[Site "Chess.com"]
[Date "2020.06.23"]
[Round "8"]
[White "iaraldinho"]
[Black "Thej11"]
[Result "0-1"]
[WhiteElo "2536"]
[BlackElo "2492"]
[TimeControl "180+1"]
[EndTime "11:33:12 PDT"]
[Termination "Thej11 won by resignation"]

1. e4 {[%clk 0:03:00.9]} 1... c6 {[%clk 0:02:58.8]} 2. d4 {[%clk 0:02:59.6]}
2... d5 {[%clk 0:02:59.7]} 3. Nc3 {[%clk 0:03:00.5]} 3... a6 {[%clk 0:02:58.7]}
4. Nf3 {[%clk 0:02:57.5]} 4... Bg4 {[%clk 0:02:57.8]} 5. Be3 {[%clk 0:02:48.3]}
5... e6 {[%clk 0:02:57]} 6. h3 {[%clk 0:02:47.8]} 6... Bh5 {[%clk 0:02:56]} 7.
Be2 {[%clk 0:02:44.4]} 7... Bb4 {[%clk 0:02:53.4]} 8. Ne5 {[%clk 0:02:37]} 8...
Bxe2 {[%clk 0:02:50.6]} 9. Qxe2 {[%clk 0:02:37.9]} 9... Bxc3+ {[%clk 0:02:43.7]}
10. bxc3 {[%clk 0:02:38.8]} 10... Nf6 {[%clk 0:02:42.5]} 11. exd5 {[%clk
0:02:35.9]} 11... cxd5 {[%clk 0:02:35.3]} 12. Bg5 {[%clk 0:02:30.5]} 12... Qc7
{[%clk 0:02:30.4]} 13. O-O {[%clk 0:02:22.3]} 13... Ne4 {[%clk 0:02:28.6]} 14.
Bd2 {[%clk 0:02:22]} 14... Nc6 {[%clk 0:02:18.9]} 15. Nxc6 {[%clk 0:02:09.6]}
15... Qxc6 {[%clk 0:02:18.1]} 16. Rab1 {[%clk 0:02:09.8]} 16... O-O {[%clk
0:02:15.1]} 17. Rb3 {[%clk 0:01:48.9]} 17... b5 {[%clk 0:02:14]} 18. f3 {[%clk
0:01:48.7]} 18... Ng3 {[%clk 0:02:12.5]} 19. Qf2 {[%clk 0:01:49.1]} 19... Nxf1
{[%clk 0:02:12]} 20. Qxf1 {[%clk 0:01:50]} 20... Qc4 {[%clk 0:02:10.7]} 21. Qe1
{[%clk 0:01:47.9]} 21... a5 {[%clk 0:02:08.5]} 22. Qg3 {[%clk 0:01:45.8]} 22...
Kh8 {[%clk 0:02:02.9]} 23. Kh2 {[%clk 0:01:33.2]} 23... a4 {[%clk 0:02:01.4]}
24. Rb2 {[%clk 0:01:33.2]} 24... b4 {[%clk 0:01:58.8]} 25. cxb4 {[%clk
0:01:23.4]} 25... a3 {[%clk 0:01:55.3]} 26. Rb3 {[%clk 0:01:18.2]} 26... Qxc2
{[%clk 0:01:54.6]} 27. Bf4 {[%clk 0:01:15.1]} 27... Qxb3 {[%clk 0:01:45.5]} 0-1